[Event "*** Titled Tuesday 3|2 Blitz"]
[Site "Chess.com"]
[Date "2017.05.02"]
[Round "1"]
[White "ehrenfeld"]
[Black "cailinchetty"]
[Result "1-0"]
[WhiteElo "2409"]
[BlackElo "1930"]
[TimeControl "180+2"]
[EndTime "13:08:51 PDT"]
[Termination "ehrenfeld won by resignation"]

1. e4 {[%clk 0:03:01.9]} 1... c5 {[%clk 0:03:01.4]} 2. Nf3 {[%clk 0:03:02.3]}
2... Nc6 {[%clk 0:03:02.8]} 3. Bb5 {[%clk 0:03:02.8]} 3... g6 {[%clk 0:03:02.1]}
4. Bxc6 {[%clk 0:03:03.5]} 4... dxc6 {[%clk 0:03:03.8]} 5. d3 {[%clk 0:03:04.2]}
5... Bg7 {[%clk 0:03:05.4]} 6. h3 {[%clk 0:03:05.1]} 6... e5 {[%clk 0:03:05.5]}
7. Nc3 {[%clk 0:03:05.6]} 7... Ne7 {[%clk 0:03:05]} 8. Be3 {[%clk 0:03:05.6]}
8... Qd6 {[%clk 0:03:06.2]} 9. Qd2 {[%clk 0:03:04.5]} 9... Be6 {[%clk
0:03:04.8]} 10. Bh6 {[%clk 0:02:59.8]} 10... O-O {[%clk 0:03:04.1]} 11. O-O
{[%clk 0:02:58.2]} 11... f5 {[%clk 0:02:57.9]} 12. Bxg7 {[%clk 0:02:58.4]} 12...
Kxg7 {[%clk 0:02:58.3]} 13. exf5 {[%clk 0:02:54.8]} 13... gxf5 {[%clk 0:02:59]}
14. Rae1 {[%clk 0:02:48.3]} 14... Ng6 {[%clk 0:02:58.4]} 15. Nxe5 {[%clk
0:02:31.5]} 15... Nxe5 {[%clk 0:02:54.9]} 16. Qe3 {[%clk 0:02:31.9]} 16... Nxd3
{[%clk 0:02:35.4]} 17. cxd3 {[%clk 0:02:32.4]} 17... Bd5 {[%clk 0:02:35.9]} 18.
d4 {[%clk 0:02:15.6]} 18... Qg6 {[%clk 0:02:25.9]} 19. Nxd5 {[%clk 0:02:06.5]}
19... cxd5 {[%clk 0:02:24.7]} 20. dxc5 {[%clk 0:02:04.5]} 20... f4 {[%clk
0:02:17.2]} 21. Qd4+ {[%clk 0:02:03.7]} 21... Kh6 {[%clk 0:02:15.7]} 22. Re5
{[%clk 0:02:00.5]} 22... Rf6 {[%clk 0:02:06.6]} 23. Rfe1 {[%clk 0:01:56.8]}
23... Rg8 {[%clk 0:02:03.8]} 24. Qxd5 {[%clk 0:01:06.9]} 24... a6 {[%clk
0:01:34]} 25. Re6 {[%clk 0:01:01.5]} 25... Rgf8 {[%clk 0:01:31.7]} 26. Rxf6
{[%clk 0:01:01.4]} 26... Rxf6 {[%clk 0:01:33]} 27. Re5 {[%clk 0:00:53.3]} 27...
f3 {[%clk 0:01:29.4]} 28. g4 {[%clk 0:00:52.6]} 28... Qb1+ {[%clk 0:01:28.4]}
29. Kh2 {[%clk 0:00:53.2]} 29... Qf1 {[%clk 0:01:27.7]} 30. Rh5+ {[%clk
0:00:48.6]} 30... Kg7 {[%clk 0:01:21.5]} 31. Qg5+ {[%clk 0:00:44.6]} 31... Kf7
{[%clk 0:01:11.8]} 32. Rxh7+ {[%clk 0:00:44]} 32... Ke6 {[%clk 0:01:13.3]} 33.
Qe3+ {[%clk 0:00:38.7]} 33... Kd5 {[%clk 0:01:12.8]} 34. Rh5+ {[%clk 0:00:30.3]}
34... Kc6 {[%clk 0:01:04.9]} 35. Kg3 {[%clk 0:00:24.5]} 35... Qg1+ {[%clk
0:00:36.3]} 36. Kh4 {[%clk 0:00:25]} 36... Qd1 {[%clk 0:00:33.7]} 37. Qe4+
{[%clk 0:00:22.9]} 37... Kc7 {[%clk 0:00:33.8]} 38. Qe5+ {[%clk 0:00:23.4]}
38... Kc8 {[%clk 0:00:33.2]} 39. Qxf6 {[%clk 0:00:21.5]} 39... Kc7 {[%clk
0:00:34]} 40. Rh7+ {[%clk 0:00:21.8]} 40... Kb8 {[%clk 0:00:35.2]} 41. Qe7
{[%clk 0:00:18.2]} 41... Qd5 {[%clk 0:00:34.1]} 42. Qd6+ {[%clk 0:00:18.3]}
42... Qxd6 {[%clk 0:00:35.5]} 43. cxd6 {[%clk 0:00:19.5]} 43... Kc8 {[%clk
0:00:37.1]} 44. Kg5 {[%clk 0:00:19.2]} 44... b6 {[%clk 0:00:37.1]} 45. Kf6
{[%clk 0:00:20.3]} 45... b5 {[%clk 0:00:37.9]} 46. Ke6 {[%clk 0:00:21.5]} 1-0

[Event "*** Titled Tuesday 3|2 Blitz"]
[Site "Chess.com"]
[Date "2017.05.02"]
[Round "1"]
[White "bancsoo"]
[Black "Schemato"]
[Result "1-0"]
[WhiteElo "2572"]
[BlackElo "2301"]
[TimeControl "180+2"]
[EndTime "13:09:03 PDT"]
[Termination "bancsoo won by resignation"]

1. Nf3 {[%clk 0:03:02]} 1... c5 {[%clk 0:02:59.7]} 2. g3 {[%clk 0:03:03.1]} 2...
Nc6 {[%clk 0:02:59.5]} 3. Bg2 {[%clk 0:03:04.3]} 3... g6 {[%clk 0:03:00.9]} 4.
O-O {[%clk 0:03:04.8]} 4... Bg7 {[%clk 0:03:02.2]} 5. c3 {[%clk 0:03:05.3]} 5...
e5 {[%clk 0:03:01]} 6. d4 {[%clk 0:02:58.1]} 6... exd4 {[%clk 0:03:01]} 7. cxd4
{[%clk 0:02:59]} 7... cxd4 {[%clk 0:03:01.4]} 8. Na3 {[%clk 0:02:57.1]} 8...
Nge7 {[%clk 0:02:58.3]} 9. Nb5 {[%clk 0:02:57.6]} 9... d5 {[%clk 0:02:43.2]} 10.
Bf4 {[%clk 0:02:55.2]} 10... O-O {[%clk 0:02:40.7]} 11. Qd2 {[%clk 0:02:19.6]}
11... Nf5 {[%clk 0:02:21]} 12. g4 {[%clk 0:02:15.2]} 12... Nh4 {[%clk
0:02:17.5]} 13. Nxh4 {[%clk 0:02:11.9]} 13... Qxh4 {[%clk 0:02:17.6]} 14. Nc7
{[%clk 0:02:09.3]} 14... Bxg4 {[%clk 0:02:09.9]} 15. Nxa8 {[%clk 0:02:06.4]}
15... Rxa8 {[%clk 0:02:09.5]} 16. Bxd5 {[%clk 0:01:52.2]} 16... Qh5 {[%clk
0:02:02.6]} 17. Bxc6 {[%clk 0:01:51.6]} 17... bxc6 {[%clk 0:02:02.8]} 18. f3
{[%clk 0:01:52.7]} 18... Bh3 {[%clk 0:02:02.2]} 19. Rfc1 {[%clk 0:01:50.8]}
19... c5 {[%clk 0:01:58.8]} 20. Rc2 {[%clk 0:01:26.1]} 20... Bf8 {[%clk
0:01:54.9]} 21. b4 {[%clk 0:01:20.6]} 21... cxb4 {[%clk 0:01:51.8]} 22. Rac1
{[%clk 0:01:17.4]} 22... Re8 {[%clk 0:01:49.2]} 23. Qxd4 {[%clk 0:01:12.7]}
23... a5 {[%clk 0:01:40.8]} 24. Qf2 {[%clk 0:00:55.1]} 24... Qf5 {[%clk
0:01:37.7]} 25. Be3 {[%clk 0:00:50]} 25... Bg7 {[%clk 0:01:33.1]} 26. Rc5 {[%clk
0:00:43.8]} 26... Qe6 {[%clk 0:01:30.1]} 27. Bf4 {[%clk 0:00:39]} 27... Qxa2
{[%clk 0:01:17.4]} 28. e3 {[%clk 0:00:32.8]} 28... Qxf2+ {[%clk 0:01:09.4]} 29.
Kxf2 {[%clk 0:00:34.4]} 29... a4 {[%clk 0:01:10.9]} 30. Ra5 {[%clk 0:00:33.8]}
30... a3 {[%clk 0:01:11.3]} 31. Rc4 {[%clk 0:00:33.6]} 31... Bc3 {[%clk
0:01:10]} 32. Rxc3 {[%clk 0:00:26.7]} 32... bxc3 {[%clk 0:01:10.3]} 33. Rxa3
{[%clk 0:00:28.3]} 33... Rc8 {[%clk 0:01:10.1]} 34. e4 {[%clk 0:00:28.6]} 34...
c2 {[%clk 0:01:05.6]} 35. Bc1 {[%clk 0:00:29.5]} 35... Be6 {[%clk 0:01:02.4]}
36. Ke3 {[%clk 0:00:30.5]} 36... Rd8 {[%clk 0:00:58.5]} 37. Bd2 {[%clk
0:00:29.6]} 37... Rc8 {[%clk 0:00:50.1]} 38. Bc1 {[%clk 0:00:30.7]} 38... Rd8
{[%clk 0:00:49.9]} 39. Rc3 {[%clk 0:00:31.6]} 39... Rd1 {[%clk 0:00:37.3]} 40.
Rxc2 {[%clk 0:00:32.6]} 40... Rh1 {[%clk 0:00:34.4]} 41. Bb2 {[%clk 0:00:32.9]}
41... Kf8 {[%clk 0:00:27.7]} 42. Bf6 {[%clk 0:00:32.2]} 42... Ke8 {[%clk
0:00:23]} 43. Rd2 {[%clk 0:00:32.2]} 43... Bd7 {[%clk 0:00:23.8]} 44. Rb2 {[%clk
0:00:33.3]} 44... Be6 {[%clk 0:00:22.4]} 45. Rd2 {[%clk 0:00:34.4]} 45... Bd7
{[%clk 0:00:23.4]} 46. Kf4 {[%clk 0:00:36]} 46... h6 {[%clk 0:00:21.8]} 47. Rb2
{[%clk 0:00:32.9]} 47... Be6 {[%clk 0:00:20.4]} 48. Ke5 {[%clk 0:00:34.5]} 48...
Rd1 {[%clk 0:00:20.1]} 49. h4 {[%clk 0:00:34.9]} 49... h5 {[%clk 0:00:20.8]} 50.
Rb8+ {[%clk 0:00:35.9]} 50... Kd7 {[%clk 0:00:22]} 51. Rd8+ {[%clk 0:00:37.4]}
51... Kc7 {[%clk 0:00:22.9]} 52. Rxd1 {[%clk 0:00:39]} 1-0

[Event "*** Titled Tuesday 3|2 Blitz"]
[Site "Chess.com"]
[Date "2017.05.02"]
[Round "1"]
[White "GM_Huschenbeth"]
[Black "severomorskij"]
[Result "0-1"]
[WhiteElo "2372"]
[BlackElo "2680"]
[TimeControl "180+2"]
[EndTime "13:09:32 PDT"]
[Termination "severomorskij won on time"]

1. e4 {[%clk 0:03:01.5]} 1... c5 {[%clk 0:02:59.6]} 2. Nf3 {[%clk 0:03:01.2]}
2... Nc6 {[%clk 0:03:00.7]} 3. d4 {[%clk 0:03:02.3]} 3... cxd4 {[%clk
0:03:01.3]} 4. Nxd4 {[%clk 0:03:04.2]} 4... e5 {[%clk 0:03:02.3]} 5. Nb5 {[%clk
0:03:04.5]} 5... d6 {[%clk 0:03:03.1]} 6. N1c3 {[%clk 0:03:04.9]} 6... a6 {[%clk
0:03:03.2]} 7. Na3 {[%clk 0:03:06.6]} 7... Be7 {[%clk 0:03:04.5]} 8. Nd5 {[%clk
0:03:07.8]} 8... Nf6 {[%clk 0:03:02.8]} 9. Nxf6+ {[%clk 0:02:56.1]} 9... Bxf6
{[%clk 0:03:03.3]} 10. Nc4 {[%clk 0:02:56.8]} 10... Be7 {[%clk 0:03:04.3]} 11.
a4 {[%clk 0:02:56.6]} 11... O-O {[%clk 0:03:05]} 12. Be2 {[%clk 0:02:49.4]}
12... Be6 {[%clk 0:02:51.5]} 13. Be3 {[%clk 0:02:47.3]} 13... b5 {[%clk
0:02:47.3]} 14. Nd2 {[%clk 0:02:35.6]} 14... Rb8 {[%clk 0:02:42.3]} 15. axb5
{[%clk 0:02:21.6]} 15... axb5 {[%clk 0:02:42.8]} 16. O-O {[%clk 0:02:23.5]}
16... d5 {[%clk 0:02:40.2]} 17. exd5 {[%clk 0:02:25.4]} 17... Bxd5 {[%clk
0:02:41.3]} 18. Bf3 {[%clk 0:02:23.9]} 18... f5 {[%clk 0:02:36.1]} 19. Bxd5+
{[%clk 0:02:07.6]} 19... Qxd5 {[%clk 0:02:34.8]} 20. Nb3 {[%clk 0:02:09.5]}
20... Rfd8 {[%clk 0:02:04]} 21. Qxd5+ {[%clk 0:02:03.8]} 21... Rxd5 {[%clk
0:02:05]} 22. Ra6 {[%clk 0:02:05.3]} 22... Nb4 {[%clk 0:01:54.4]} 23. Ra7 {[%clk
0:02:06.1]} 23... Bf6 {[%clk 0:01:52.6]} 24. Rc7 {[%clk 0:01:27.4]} 24... Rbd8
{[%clk 0:01:43.8]} 25. f3 {[%clk 0:01:20.8]} 25... Rd1 {[%clk 0:01:32]} 26. Rc5
{[%clk 0:01:04.6]} 26... f4 {[%clk 0:01:22.2]} 27. Bf2 {[%clk 0:01:02.5]} 27...
R8d5 {[%clk 0:01:11.2]} 28. c3 {[%clk 0:00:44.4]} 28... Nc2 {[%clk 0:00:58]} 29.
Rxd5 {[%clk 0:00:39]} 29... Rxd5 {[%clk 0:00:59.9]} 30. Rc1 {[%clk 0:00:36]}
30... Ne3 {[%clk 0:01:00.9]} 31. Bxe3 {[%clk 0:00:35.8]} 31... fxe3 {[%clk
0:01:02.8]} 32. Kf1 {[%clk 0:00:37.4]} 32... Bg5 {[%clk 0:00:44.8]} 33. Ke2
{[%clk 0:00:38.6]} 33... Rd7 {[%clk 0:00:30.4]} 34. Ra1 {[%clk 0:00:29.8]} 34...
Kf7 {[%clk 0:00:29.8]} 35. Ra5 {[%clk 0:00:26.3]} 35... Rb7 {[%clk 0:00:27.1]}
36. Nc5 {[%clk 0:00:27.2]} 36... Rb6 {[%clk 0:00:27.4]} 37. Ne4 {[%clk
0:00:28.3]} 37... Bh6 {[%clk 0:00:26.7]} 38. Ra7+ {[%clk 0:00:23.2]} 38... Ke6
{[%clk 0:00:25.7]} 39. g4 {[%clk 0:00:24.8]} 39... Bf4 {[%clk 0:00:25.1]} 40.
Rxg7 {[%clk 0:00:23.1]} 40... Kd5 {[%clk 0:00:24]} 41. Kd3 {[%clk 0:00:20.9]}
41... Rh6 {[%clk 0:00:15.6]} 42. Re7 {[%clk 0:00:07.3]} 42... Rxh2 {[%clk
0:00:14.8]} 43. b4 {[%clk 0:00:08.8]} 43... e2 {[%clk 0:00:14.8]} 44. Rd7+
{[%clk 0:00:05.9]} 44... Ke6 {[%clk 0:00:15.2]} 45. Nc5+ {[%clk 0:00:06]} 45...
Kf6 {[%clk 0:00:16.3]} 46. Ne4+ {[%clk 0:00:04.4]} 46... Kg6 {[%clk 0:00:17.6]}
47. Rd6+ {[%clk 0:00:05.1]} 47... Kf7 {[%clk 0:00:18.8]} 48. Rd7+ {[%clk
0:00:05.8]} 48... Kf8 {[%clk 0:00:19.7]} 49. Nf6 {[%clk 0:00:03.1]} 49... e1=Q
{[%clk 0:00:20]} 0-1

[Event "*** Titled Tuesday 3|2 Blitz"]
[Site "Chess.com"]
[Date "2017.05.02"]
[Round "1"]
[White "biostatistician"]
[Black "pawnwonder"]
[Result "1-0"]
[WhiteElo "2404"]
[BlackElo "1829"]
[TimeControl "180+2"]
[EndTime "13:10:16 PDT"]
[Termination "biostatistician won by resignation"]

1. d4 {[%clk 0:03:02]} 1... Nf6 {[%clk 0:03:00.1]} 2. Nf3 {[%clk 0:03:03.9]}
2... g6 {[%clk 0:03:01.3]} 3. c4 {[%clk 0:03:05.5]} 3... Bg7 {[%clk 0:03:02.6]}
4. Nc3 {[%clk 0:03:07.4]} 4... O-O {[%clk 0:03:03.6]} 5. e4 {[%clk 0:03:09]}
5... d6 {[%clk 0:03:05]} 6. Be2 {[%clk 0:03:10.9]} 6... e5 {[%clk 0:03:06]} 7.
dxe5 {[%clk 0:03:12.8]} 7... dxe5 {[%clk 0:03:06.6]} 8. Qxd8 {[%clk 0:03:14.7]}
8... Rxd8 {[%clk 0:03:07.9]} 9. Bg5 {[%clk 0:03:16.6]} 9... Re8 {[%clk
0:03:09.2]} 10. Nd5 {[%clk 0:03:16.9]} 10... Nxd5 {[%clk 0:03:09.7]} 11. cxd5
{[%clk 0:03:18.8]} 11... c6 {[%clk 0:03:08.3]} 12. Bc4 {[%clk 0:03:20.3]} 12...
cxd5 {[%clk 0:03:08.3]} 13. Bxd5 {[%clk 0:03:22.2]} 13... Nc6 {[%clk 0:03:07.8]}
14. O-O-O {[%clk 0:03:22.2]} 14... Bg4 {[%clk 0:03:06.3]} 15. Kb1 {[%clk
0:03:23.4]} 15... Nd4 {[%clk 0:03:06.7]} 16. Nxd4 {[%clk 0:03:24.1]} 16... exd4
{[%clk 0:02:53.3]} 17. f3 {[%clk 0:03:23.8]} 17... Be6 {[%clk 0:02:51.1]} 18.
Bxb7 {[%clk 0:02:18.5]} 18... Rab8 {[%clk 0:02:43.3]} 19. Bc6 {[%clk 0:02:10.1]}
19... Rec8 {[%clk 0:02:42.2]} 20. Ba4 {[%clk 0:02:10.5]} 20... Rb6 {[%clk
0:02:40.7]} 21. Rc1 {[%clk 0:01:55.2]} 21... Rcb8 {[%clk 0:02:35.7]} 22. b3
{[%clk 0:01:55.2]} 22... Rb4 {[%clk 0:02:35]} 23. Kc2 {[%clk 0:01:53.8]} 23...
f5 {[%clk 0:02:20]} 24. Kd3 {[%clk 0:01:54.2]} 24... fxe4+ {[%clk 0:02:20.9]}
25. fxe4 {[%clk 0:01:56.1]} 25... Bc8 {[%clk 0:02:14.3]} 26. Kd2 {[%clk
0:01:25.7]} 26... Ba6 {[%clk 0:02:09.6]} 27. Bf4 {[%clk 0:01:12.6]} 27... Rf8
{[%clk 0:02:09.5]} 28. g3 {[%clk 0:00:51.3]} 28... h6 {[%clk 0:01:56.7]} 29. Rc6
{[%clk 0:00:47.4]} 29... Bb7 {[%clk 0:01:38.8]} 30. Rxg6 {[%clk 0:00:48.3]}
30... Bxe4 {[%clk 0:01:37.4]} 31. Rxg7+ {[%clk 0:00:49.1]} 31... Kxg7 {[%clk
0:01:35.6]} 32. Re1 {[%clk 0:00:51]} 32... Bg6 {[%clk 0:01:32]} 33. Bc6 {[%clk
0:00:32.5]} 33... Rb6 {[%clk 0:01:27.2]} 34. Bd5 {[%clk 0:00:32.3]} 34... Rc8
{[%clk 0:01:22.3]} 35. Bc4 {[%clk 0:00:21.3]} 35... Rb7 {[%clk 0:01:20.1]} 36.
Be5+ {[%clk 0:00:22]} 36... Kh7 {[%clk 0:01:12.8]} 37. Bxd4 {[%clk 0:00:23.9]}
37... Rd8 {[%clk 0:01:13.8]} 38. Kc3 {[%clk 0:00:25.1]} 38... Rbd7 {[%clk
0:01:12.3]} 39. Bf6 {[%clk 0:00:25.8]} 39... Rf8 {[%clk 0:01:11.2]} 40. Bd4
{[%clk 0:00:26.4]} 40... Rfd8 {[%clk 0:01:11.7]} 41. Bc5 {[%clk 0:00:24.7]}
41... a5 {[%clk 0:01:04.7]} 42. Bb6 {[%clk 0:00:24.5]} 42... Rc8 {[%clk
0:01:03.3]} 43. Bxa5 {[%clk 0:00:24.5]} 43... Bf7 {[%clk 0:01:04.5]} 44. Bb4
{[%clk 0:00:24.2]} 44... Bxc4 {[%clk 0:01:05]} 45. bxc4 {[%clk 0:00:24.2]} 45...
Rdc7 {[%clk 0:01:06.9]} 46. Re4 {[%clk 0:00:25.6]} 46... Ra8 {[%clk 0:01:07.4]}
47. a3 {[%clk 0:00:26.2]} 47... Rac8 {[%clk 0:01:08.1]} 48. c5 {[%clk
0:00:27.7]} 48... Kg6 {[%clk 0:01:08.2]} 49. Kc4 {[%clk 0:00:29]} 49... Kf5
{[%clk 0:01:07.9]} 50. Rd4 {[%clk 0:00:30.2]} 50... Ke5 {[%clk 0:01:07.7]} 51.
Rd5+ {[%clk 0:00:31.2]} 51... Ke4 {[%clk 0:01:08.6]} 52. Rd6 {[%clk 0:00:32.3]}
52... Rc6 {[%clk 0:01:09.5]} 53. Rd7 {[%clk 0:00:33.2]} 53... Kf3 {[%clk
0:01:08.7]} 54. Rd2 {[%clk 0:00:33.6]} 54... Ke3 {[%clk 0:01:09.2]} 55. Rc2
{[%clk 0:00:32]} 55... Kf3 {[%clk 0:01:09.3]} 56. a4 {[%clk 0:00:32.5]} 56...
Ke4 {[%clk 0:01:10.2]} 57. a5 {[%clk 0:00:33.3]} 57... Rb8 {[%clk 0:01:08.8]}
58. Ra2 {[%clk 0:00:32.4]} 58... Ra8 {[%clk 0:01:09.1]} 59. Re2+ {[%clk
0:00:29.3]} 59... Kf5 {[%clk 0:01:09.3]} 60. Re7 {[%clk 0:00:28.7]} 60... Raa6
{[%clk 0:01:09.4]} 61. Kb5 {[%clk 0:00:29.3]} 61... Kg4 {[%clk 0:01:10.2]} 62.
Re2 {[%clk 0:00:26]} 62... Kf5 {[%clk 0:01:11.1]} 63. Rd2 {[%clk 0:00:27]} 63...
Kf6 {[%clk 0:01:12.3]} 64. Rd6+ {[%clk 0:00:26.6]} 64... Rxd6 {[%clk 0:01:11.4]}
65. cxd6 {[%clk 0:00:28.5]} 65... Ra7 {[%clk 0:01:11.4]} 66. a6 {[%clk
0:00:28.9]} 66... Ke6 {[%clk 0:01:12]} 67. Kb6 {[%clk 0:00:29.2]} 67... Ra8
{[%clk 0:01:09.5]} 68. a7 {[%clk 0:00:30.1]} 68... Kd7 {[%clk 0:01:09.3]} 69.
Kb7 {[%clk 0:00:30.9]} 69... Rg8 {[%clk 0:01:09.8]} 70. a8=Q {[%clk 0:00:31.1]}
70... Rxa8 {[%clk 0:01:11.3]} 71. Kxa8 {[%clk 0:00:33]} 71... Kc6 {[%clk
0:01:12.6]} 72. Kb8 {[%clk 0:00:33.8]} 72... Kd7 {[%clk 0:01:14.5]} 73. Kb7
{[%clk 0:00:34.6]} 73... Kd8 {[%clk 0:01:15.1]} 74. Kc6 {[%clk 0:00:35.5]} 74...
Kc8 {[%clk 0:01:16.3]} 75. d7+ {[%clk 0:00:36.4]} 75... Kd8 {[%clk 0:01:17.9]}
76. Ba5+ {[%clk 0:00:37.9]} 76... Ke7 {[%clk 0:01:18.6]} 77. d8=Q+ {[%clk
0:00:39.8]} 77... Ke6 {[%clk 0:01:20.5]} 78. Qe8+ {[%clk 0:00:40.5]} 1-0

[Event "*** Titled Tuesday 3|2 Blitz"]
[Site "Chess.com"]
[Date "2017.05.02"]
[Round "1"]
[White "AdrianaNikolova"]
[Black "Keranke"]
[Result "0-1"]
[WhiteElo "2333"]
[BlackElo "2613"]
[TimeControl "180+2"]
[EndTime "13:10:44 PDT"]
[Termination "Keranke won on time"]

1. e4 {[%clk 0:03:02]} 1... g6 {[%clk 0:02:52.8]} 2. d4 {[%clk 0:03:02]} 2...
Bg7 {[%clk 0:02:54.2]} 3. Nc3 {[%clk 0:03:03.8]} 3... d6 {[%clk 0:02:55.7]} 4.
Be3 {[%clk 0:03:05]} 4... a6 {[%clk 0:02:56.9]} 5. a4 {[%clk 0:03:04.9]} 5... b6
{[%clk 0:02:58.1]} 6. h3 {[%clk 0:02:54.2]} 6... Bb7 {[%clk 0:02:58.9]} 7. Nge2
{[%clk 0:02:55.8]} 7... Nd7 {[%clk 0:03:00]} 8. g4 {[%clk 0:02:56.1]} 8... c5
{[%clk 0:03:01.1]} 9. Bg2 {[%clk 0:02:57.1]} 9... cxd4 {[%clk 0:02:53.8]} 10.
Bxd4 {[%clk 0:02:56.7]} 10... Ngf6 {[%clk 0:02:42.1]} 11. g5 {[%clk 0:02:47.4]}
11... Nh5 {[%clk 0:02:43.2]} 12. Bxg7 {[%clk 0:02:49]} 12... Nxg7 {[%clk
0:02:45.1]} 13. Ng3 {[%clk 0:02:40.6]} 13... Nc5 {[%clk 0:02:32]} 14. h4 {[%clk
0:02:27.9]} 14... h6 {[%clk 0:02:27.4]} 15. Qd4 {[%clk 0:02:06.9]} 15... e5
{[%clk 0:02:27.4]} 16. Qd2 {[%clk 0:02:01.3]} 16... hxg5 {[%clk 0:02:23.7]} 17.
hxg5 {[%clk 0:02:03.2]} 17... Rxh1+ {[%clk 0:02:25.2]} 18. Bxh1 {[%clk
0:02:04.3]} 18... Nce6 {[%clk 0:02:19.2]} 19. O-O-O {[%clk 0:02:00.4]} 19... Nd4
{[%clk 0:01:58.4]} 20. Nge2 {[%clk 0:01:49.1]} 20... Nge6 {[%clk 0:01:58.8]} 21.
f4 {[%clk 0:01:36.2]} 21... Rc8 {[%clk 0:01:33.8]} 22. Kb1 {[%clk 0:01:14.8]}
22... b5 {[%clk 0:01:02]} 23. axb5 {[%clk 0:01:06.2]} 23... axb5 {[%clk
0:01:03.9]} 24. f5 {[%clk 0:00:44.7]} 24... Nxe2 {[%clk 0:01:04.7]} 25. Nxe2
{[%clk 0:00:43.1]} 25... Nxg5 {[%clk 0:01:02.4]} 26. Nc3 {[%clk 0:00:36.9]}
26... Rc5 {[%clk 0:00:32.1]} 27. fxg6 {[%clk 0:00:33.9]} 27... fxg6 {[%clk
0:00:31.8]} 28. Rg1 {[%clk 0:00:28.6]} 28... Nf7 {[%clk 0:00:22.1]} 29. Rxg6
{[%clk 0:00:28.8]} 29... Qh4 {[%clk 0:00:22.8]} 30. Rg8+ {[%clk 0:00:19.2]}
30... Ke7 {[%clk 0:00:21.8]} 31. Rg1 {[%clk 0:00:20.5]} 31... b4 {[%clk
0:00:20.8]} 32. Nd5+ {[%clk 0:00:21.4]} 32... Bxd5 {[%clk 0:00:21.8]} 33. exd5
{[%clk 0:00:23]} 33... Qf4 {[%clk 0:00:18.7]} 34. Qg2 {[%clk 0:00:14.5]} 34...
b3 {[%clk 0:00:15]} 35. c3 {[%clk 0:00:11.9]} 35... Qa4 {[%clk 0:00:13.5]} 36.
Qh3 {[%clk 0:00:08.5]} 36... Qa2+ {[%clk 0:00:14.1]} 37. Kc1 {[%clk 0:00:09.7]}
37... Qa1+ {[%clk 0:00:16]} 38. Kd2 {[%clk 0:00:11.2]} 38... Qxb2+ {[%clk
0:00:17.9]} 39. Kd1 {[%clk 0:00:09.9]} 39... Qc2+ {[%clk 0:00:17.7]} 40. Ke1
{[%clk 0:00:11.3]} 40... Qxc3+ {[%clk 0:00:19.2]} 41. Qxc3 {[%clk 0:00:12]}
41... Rxc3 {[%clk 0:00:21.1]} 42. Kd2 {[%clk 0:00:12.8]} 42... Rc2+ {[%clk
0:00:22.2]} 43. Kd3 {[%clk 0:00:13.8]} 43... Rh2 {[%clk 0:00:22.5]} 44. Be4
{[%clk 0:00:13.3]} 44... b2 {[%clk 0:00:21.1]} 45. Kc3 {[%clk 0:00:12.5]} 45...
Kf6 {[%clk 0:00:22]} 46. Rf1+ {[%clk 0:00:12.9]} 46... Kg7 {[%clk 0:00:23.2]}
47. Bc2 {[%clk 0:00:14]} 47... Ng5 {[%clk 0:00:22.6]} 48. Rg1 {[%clk 0:00:15.2]}
48... Kf6 {[%clk 0:00:23]} 49. Kxb2 {[%clk 0:00:17.1]} 49... e4 {[%clk
0:00:21.4]} 50. Rf1+ {[%clk 0:00:18.5]} 50... Ke5 {[%clk 0:00:22.4]} 51. Kc3
{[%clk 0:00:20.4]} 51... Nf3 {[%clk 0:00:23.3]} 52. Bd1 {[%clk 0:00:15.1]} 52...
Rh3 {[%clk 0:00:22.1]} 53. Kc2 {[%clk 0:00:13.2]} 53... Kxd5 {[%clk 0:00:22.1]}
54. Rf2 {[%clk 0:00:08.9]} 54... Ke5 {[%clk 0:00:21.8]} 55. Kc1 {[%clk
0:00:07.5]} 55... d5 {[%clk 0:00:22.7]} 56. Rg2 {[%clk 0:00:08.2]} 56... d4
{[%clk 0:00:21.9]} 57. Rg8 {[%clk 0:00:10.1]} 57... Kf4 {[%clk 0:00:22.8]} 58.
Rf8+ {[%clk 0:00:09.3]} 58... Ke3 {[%clk 0:00:24.1]} 59. Ra8 {[%clk 0:00:09.9]}
59... Rh1 {[%clk 0:00:24.6]} 60. Kc2 {[%clk 0:00:10.2]} 60... d3+ {[%clk
0:00:25.9]} 61. Kc1 {[%clk 0:00:10.8]} 61... Nd4 {[%clk 0:00:27.1]} 62. Ra3
{[%clk 0:00:09.3]} 62... Ne2+ {[%clk 0:00:28.1]} 63. Kb2 {[%clk 0:00:10.6]}
63... Rxd1 {[%clk 0:00:29.7]} 64. Kb3 {[%clk 0:00:11.1]} 64... Rc1 {[%clk
0:00:29.9]} 65. Kb4 {[%clk 0:00:10.4]} 65... Kf2 {[%clk 0:00:30]} 66. Ra2 {[%clk
0:00:03.8]} 66... e3 {[%clk 0:00:30.7]} 0-1